bitfinex/quotes_SOLUSD_20250106
["timestamp","ask_amount","ask_price","bid_price","bid_amount"]
[1736189252411,8.80335684,219.11,219.04,8.80335684]
[1736189252622,2.08,219.1,219.04,8.80335684]
[1736189252918,20.0,219.12,219.05,8.80335684]
[1736189253206,2.08,219.11,219.08,8.80335684]
[1736189253574,2.08,219.1,219.08,8.80335684]
[1736189254688,2.08,219.12,219.09,8.80335684]
[1736189255083,2.08,219.12,219.1,8.80335684]
[1736189255420,2.08,219.12,219.09,8.80335684]
[1736189255923,2.08,219.12,219.08,8.80335684]
[1736189258529,2.08,219.12,219.09,8.80335684]
[1736189259333,2.08,219.12,219.08,8.80335684]
[1736189259642,2.08,219.12,219.07,8.80335684]
[1736189263815,2.08,219.12,219.04,11.413]
[1736189264014,2.08,219.12,219.07,8.80335684]
[1736189264533,2.08,219.12,219.08,8.80335684]
[1736189264834,2.08,219.12,219.09,8.80335684]
[1736189265024,2.08,219.12,219.1,8.80335684]
[1736189265407,2.08,219.12,219.09,8.80335684]
[1736189266259,2.08,219.15,219.11,8.80335684]
[1736189266468,2.08,219.15,219.12,8.80335684]
[1736189267051,1.6275,219.21,219.13,8.80335684]
[1736189267349,2.08,219.16,219.13,8.80335684]
[1736189267828,8.80335684,219.2,219.1,11.4101]
[1736189267829,2.08,219.17,219.14,8.80335684]
[1736189268453,2.08,219.17,219.13,8.80335684]
[1736189269950,2.08,219.17,219.14,8.80335684]
[1736189270359,2.08,219.17,219.13,8.80335684]
[1736189273569,7.13325548,219.24,219.14,8.80335684]
[1736189273721,2.08,219.19,219.15,8.80335684]
[1736189273925,2.08,219.19,219.13,8.80335684]
[1736189274465,2.08,219.19,219.1,12.948]
[1736189274466,8.80335684,219.17,219.1,1.5379]
[1736189274759,8.80335684,219.16,219.1,8.80335684]
[1736189275050,8.80335684,219.13,219.07,8.80335684]
[1736189275230,8.80335684,219.14,219.08,8.80335684]
[1736189276572,8.80335684,219.11,219.06,20.0]
[1736189276857,10.88335684,219.11,219.06,20.0]
[1736189277426,2.08,219.11,219.06,20.0]
[1736189277958,2.08,219.11,219.06,28.80335684]
[1736189279875,2.08,219.11,219.06,20.0]
[1736189280037,10.88335684,219.11,219.05,8.80335684]
[1736189280452,8.80335684,219.1,219.04,28.80335684]
[1736189281767,8.80335684,219.1,219.01,11.4149]
[1736189281768,2.08,219.11,219.06,8.80335684]
[1736189282262,2.08,219.11,219.07,8.80335684]
[1736189286563,2.08,219.11,219.08,8.80335684]
[1736189287076,2.08,219.11,219.07,8.80335684]
[1736189287839,2.08,219.11,219.08,8.80335684]
[1736189289164,1.575,219.18,219.1,8.80335684]
[1736189289382,7.987,219.23,219.15,8.80335684]
[1736189289679,2.08,219.18,219.17,8.80335684]
[1736189289855,2.08,219.21,219.17,8.80335684]
[1736189290051,2.08,219.21,219.19,8.80335684]
[1736189290272,7.13325548,219.23,219.19,8.80335684]
[1736189290579,2.08,219.22,219.19,8.80335684]
[1736189291434,2.08,219.22,219.18,8.80335684]
[1736189292548,2.08,219.22,219.19,8.80335684]
[1736189293476,2.08,219.22,219.17,8.80335684]
[1736189294462,2.08,219.22,219.16,8.80335684]
[1736189294670,2.08,219.22,219.18,8.80335684]
[1736189299103,2.08,219.22,219.17,8.80335684]
[1736189299278,2.08,219.22,219.16,8.80335684]
[1736189299599,2.08,219.22,219.17,8.80335684]
[1736189302516,2.08,219.22,219.18,8.80335684]
[1736189303708,2.08,219.22,219.17,8.80335684]
[1736189306316,2.08,219.22,219.12,46.62222736]
[1736189306317,2.08,219.22,219.16,8.80335684]
[1736189306519,8.80335684,219.21,219.14,8.80335684]
[1736189308484,8.80335684,219.19,219.12,8.80335684]
[1736189308817,8.80335684,219.18,219.11,8.80335684]
[1736189308990,8.80335684,219.18,219.12,8.80335684]
[1736189309188,8.80335684,219.13,219.01,11.4122]
[1736189309524,8.80335684,219.11,219.04,8.80335684]
[1736189310417,8.80335684,219.1,219.03,8.80335684]
[1736189310723,8.80335684,219.09,219.03,8.80335684]
[1736189312717,8.80335684,219.1,219.03,8.80335684]
[1736189312935,8.80335684,219.1,219.04,8.80335684]
[1736189314016,2.08,219.12,219.03,8.80335684]
[1736189314017,8.80335684,219.09,219.03,8.80335684]
[1736189314422,8.80335684,219.07,219.01,8.80335684]
[1736189314600,8.80335684,219.06,218.99,8.80335684]
[1736189314789,8.80335684,219.03,218.97,8.80335684]
[1736189314989,10.88335684,219.03,218.92,1.5625]
[1736189315232,10.88335684,219.03,218.97,8.80335684]
[1736189316525,2.08,219.03,218.98,8.80335684]
[1736189317016,2.08,219.03,218.99,8.80335684]
[1736189318527,2.08,219.03,218.98,8.80335684]
[1736189320532,8.80335684,219.02,218.92,1.5625]
[1736189320750,8.80335684,219.02,218.96,8.80335684]
[1736189322216,10.88335684,219.03,218.97,8.80335684]
[1736189324038,10.88335684,219.03,218.92,1.5625]
[1736189324201,8.80335684,219.02,218.95,8.80335684]
[1736189325133,8.80335684,219.02,218.96,8.80335684]
[1736189330029,8.80335684,219.01,218.94,8.80335684]
[1736189330540,8.80335684,219.02,218.95,8.80335684]
[1736189330935,10.88335684,219.03,218.96,8.80335684]
[1736189333345,8.80335684,219.02,218.95,8.80335684]
[1736189333510,8.80335684,219.01,218.94,8.80335684]
[1736189334243,8.80335684,219.0,218.88,0.12549]
[1736189334439,8.80335684,219.0,218.87,1.69549]
[1736189334440,8.80335684,218.99,218.92,8.80335684]
[1736189334643,8.80335684,218.99,218.87,12.9918]
[1736189334644,8.80335684,218.97,218.9,8.80335684]
[1736189334956,8.80335684,218.98,218.92,8.80335684]
[1736189335440,8.80335684,218.99,218.93,8.80335684]
[1736189335745,1.5701,219.0,218.94,8.80335684]
[1736189335949,1.5701,219.0,218.95,8.80335684]
[1736189336123,2.08,218.99,218.95,8.80335684]
[1736189336324,2.08,218.99,218.94,8.80335684]
[1736189336512,2.08,218.99,218.95,8.80335684]
[1736189337419,2.08,218.99,218.94,8.80335684]
[1736189337940,2.08,218.99,218.93,8.80335684]
[1736189338149,2.08,218.99,218.87,12.9918]
[1736189338450,2.08,218.99,218.93,8.80335684]
[1736189338608,10.88335684,218.99,218.92,8.80335684]
[1736189338812,10.88335684,218.99,218.93,8.80335684]
[1736189339031,2.08,218.99,218.93,8.80335684]
[1736189339221,2.08,218.99,218.87,12.9918]
[1736189339437,10.88335684,218.99,218.93,8.80335684]
[1736189339642,2.08,218.99,218.93,8.80335684]
[1736189340554,8.80335684,218.97,218.87,11.4218]
[1736189340851,8.80335684,218.97,218.9,8.80335684]
[1736189341648,8.80335684,218.97,218.83,3.6152658]
[1736189341649,8.80335684,218.95,218.84,11.4238]
[1736189341843,8.80335684,218.95,218.89,8.80335684]
[1736189342845,8.80335684,218.97,218.9,8.80335684]
[1736189343242,8.80335684,218.97,218.91,8.80335684]
[1736189343733,9.8392,218.99,218.94,8.80335684]
[1736189345246,23.776884,218.95,218.83,1.6142]
[1736189345446,23.776884,218.95,218.89,8.80335684]
[1736189345647,8.80335684,218.95,218.88,8.80335684]
[1736189346329,28.80335684,218.94,218.87,8.80335684]
[1736189346536,8.80335684,218.91,218.84,8.80335684]
[1736189346762,2.08,218.9,218.84,8.80335684]
[1736189347737,2.08,218.9,218.85,8.80335684]
[1736189348440,2.08,218.9,218.86,8.80335684]
[1736189348751,2.08,218.9,218.87,8.80335684]
[1736189349869,2.08,218.9,218.86,8.80335684]
[1736189350370,2.08,218.9,218.85,8.80335684]
[1736189350756,2.08,218.9,218.86,8.80335684]
[1736189350954,2.08,218.9,218.85,8.80335684]
[1736189351447,2.08,218.9,218.86,8.80335684]
[1736189352943,2.08,218.9,218.85,8.80335684]
[1736189354667,2.08,218.9,218.84,8.80335684]
[1736189356783,10.88335684,218.9,218.83,8.80335684]
[1736189359162,10.88335684,218.9,218.81,11.4253]
[1736189359365,8.80335684,218.89,218.83,8.80335684]
[1736189359772,10.88335684,218.9,218.83,8.80335684]
[1736189360461,2.08,218.9,218.84,8.80335684]
[1736189360660,8.80335684,218.91,218.84,8.80335684]
[1736189360859,2.08,218.9,218.84,8.80335684]
[1736189361584,10.88335684,218.9,218.83,8.80335684]
[1736189361882,8.80335684,218.89,218.82,8.80335684]
[1736189362381,8.80335684,218.89,218.77,1.5709]
[1736189362572,8.80335684,218.86,218.79,8.80335684]
[1736189362882,8.80335684,218.83,218.77,20.0]
[1736189363097,10.88335684,218.82,218.75,8.80335684]
[1736189363265,8.80335684,218.8,218.72,1.5556]
[1736189363465,2.08,218.79,218.73,8.80335684]
[1736189364267,2.08,218.79,218.74,8.80335684]
[1736189365085,2.08,218.79,218.7,11.4307]
[1736189365292,10.88335684,218.79,218.72,8.80335684]
[1736189365588,8.80335684,218.78,218.72,8.80335684]
[1736189365758,10.88335684,218.79,218.72,8.80335684]
[1736189366488,2.08,218.79,218.73,8.80335684]
[1736189367790,2.08,218.79,218.74,8.80335684]
[1736189369460,2.08,218.79,218.7,11.4307]
[1736189369660,2.08,218.79,218.73,8.80335684]
[1736189372069,10.88335684,218.79,218.73,8.80335684]
[1736189372470,10.88335684,218.79,218.72,8.80335684]
[1736189372784,2.08,218.79,218.73,8.80335684]
[1736189372980,2.08,218.79,218.71,8.80335684]
[1736189373183,8.80335684,218.78,218.71,8.80335684]
[1736189373502,10.88335684,218.79,218.72,8.80335684]
[1736189373667,10.88335684,218.79,218.73,8.80335684]
[1736189374592,2.08,218.79,218.73,8.80335684]
[1736189375090,2.08,218.79,218.74,8.80335684]
[1736189375399,2.08,218.79,218.75,8.80335684]
[1736189376192,2.08,218.79,218.74,8.80335684]
[1736189376367,2.08,218.79,218.7,11.4307]
[1736189376368,2.08,218.79,218.73,8.80335684]
[1736189376561,10.88335684,218.79,218.73,8.80335684]
[1736189376758,10.88335684,218.79,218.72,8.80335684]
[1736189378369,10.88335684,218.79,218.73,8.80335684]
[1736189378569,2.08,218.79,218.73,8.80335684]
[1736189379594,10.88335684,218.79,218.72,8.80335684]
[1736189380661,8.80335684,218.74,218.63,11.4348]
[1736189380857,8.80335684,218.72,218.66,8.80335684]
[1736189381092,2.08,218.71,218.66,8.80335684]
[1736189382291,2.08,218.71,218.65,8.80335684]
[1736189382500,2.08,218.71,218.64,8.80335684]
[1736189382501,10.88335684,218.71,218.64,8.80335684]
[1736189382797,2.08,218.71,218.65,8.80335684]
[1736189383397,8.80335684,218.7,218.64,8.80335684]
[1736189384097,10.88335684,218.71,218.65,8.80335684]
[1736189384898,10.88335684,218.71,218.63,20.0]
[1736189384899,2.08,218.71,218.63,20.0]
[1736189385070,2.08,218.71,218.68,8.80335684]
[1736189385264,2.08,218.71,218.67,8.80335684]
[1736189385480,2.08,218.71,218.62,11.4353]
[1736189385481,10.88335684,218.71,218.62,11.4353]
[1736189385694,10.88335684,218.71,218.64,8.80335684]
[1736189385898,10.88335684,218.71,218.65,8.80335684]
[1736189386270,10.88335684,218.71,218.64,8.80335684]
[1736189386689,10.88335684,218.71,218.6,20.0]
[1736189386894,10.88335684,218.71,218.64,8.80335684]
[1736189387397,8.80335684,218.69,218.6,20.0]
[1736189387700,8.80335684,218.68,218.62,8.80335684]
[1736189389307,8.80335684,218.68,218.59,11.4369]
[1736189389308,8.80335684,218.67,218.61,8.80335684]
[1736189389476,20.0,218.62,218.51,1.5454]
[1736189389678,2.08,218.61,218.56,8.80335684]
[1736189390273,10.88335684,218.61,218.51,1.5454]
[1736189390490,8.80335684,218.59,218.51,11.4406]
[1736189390684,8.80335684,218.59,218.53,8.80335684]
[1736189391281,8.80335684,218.59,218.52,8.80335684]
[1736189391609,8.80335684,218.59,218.51,11.4406]
[1736189391610,2.08,218.58,218.54,11.4394]
[1736189392489,2.08,218.58,218.57,28.80335684]
[1736189392687,2.08,218.63,218.57,28.80335684]
[1736189392895,2.08,218.63,218.62,8.80335684]
[1736189393206,2.08,218.63,218.61,8.80335684]
[1736189393505,2.08,218.63,218.6,8.80335684]
[1736189394384,2.08,218.63,218.57,20.0]
[1736189394697,2.08,218.63,218.59,8.80335684]
[1736189394908,2.08,218.63,218.61,8.80335684]
[1736189395609,30.40665684,218.67,218.61,8.80335684]
[1736189395781,2.08,218.63,218.6,8.80335684]
[1736189396290,2.08,218.63,218.58,11.4374]
[1736189396490,2.08,218.63,218.6,8.80335684]
[1736189397205,2.08,218.63,218.59,8.80335684]
[1736189398381,2.08,218.63,218.6,8.80335684]
[1736189398582,2.08,218.63,218.59,8.80335684]
[1736189399104,10.88335684,218.63,218.57,20.0]
[1736189399410,10.88335684,218.63,218.56,8.80335684]
[1736189399619,10.88335684,218.63,218.57,8.80335684]
[1736189399911,8.80335684,218.61,218.54,11.4394]
[1736189400083,8.80335684,218.61,218.55,8.80335684]
[1736189400476,8.80335684,218.61,218.54,8.80335684]
[1736189401011,8.80335684,218.61,218.55,8.80335684]
[1736189401391,8.80335684,218.61,218.54,8.80335684]
[1736189401805,15.30035684,218.6,218.53,20.0]
[1736189402013,15.30035684,218.6,218.53,28.80335684]
[1736189402690,1.6033,218.67,218.56,8.80335684]
[1736189402691,6.5834,218.66,218.56,8.80335684]
[1736189402895,20.0,218.63,218.58,8.80335684]
[1736189403223,2.08,218.62,218.58,8.80335684]
[1736189403397,2.08,218.62,218.57,8.80335684]
[1736189404319,10.88335684,218.62,218.55,8.80335684]
[1736189404619,8.80335684,218.61,218.55,8.80335684]
[1736189404820,8.80335684,218.6,218.53,11.4399]
[1736189404987,8.80335684,218.6,218.54,8.80335684]
[1736189405188,2.08,218.62,218.51,28.80335684]
[1736189405189,8.80335684,218.58,218.51,28.80335684]
[1736189405503,8.80335684,218.6,218.53,8.80335684]
[1736189405707,8.80335684,218.59,218.53,8.80335684]
[1736189406019,8.80335684,218.61,218.54,8.80335684]
[1736189407215,2.08,218.62,218.56,8.80335684]
[1736189407515,20.0,218.61,218.57,8.80335684]
[1736189407686,20.0,218.61,218.51,11.4406]
[1736189407886,20.0,218.61,218.56,8.80335684]
[1736189409220,2.08,218.62,218.56,8.80335684]
[1736189409605,2.08,218.61,218.58,8.80335684]
[1736189410299,2.08,218.61,218.53,11.4396]
[1736189410504,2.08,218.61,218.57,8.80335684]
[1736189411322,2.08,218.61,218.58,8.80335684]
[1736189411923,8.80335684,218.65,218.58,8.80335684]
[1736189412216,2.08,218.64,218.58,8.80335684]
[1736189412421,10.88335684,218.64,218.57,8.80335684]
[1736189413030,2.08,218.64,218.6,8.80335684]
[1736189413323,2.08,218.63,218.61,8.80335684]
[1736189414417,1.6033,218.67,218.61,8.80335684]
[1736189414731,6.5063,218.71,218.62,8.80335684]
[1736189414904,2.08,218.7,218.65,8.80335684]
[1736189415430,2.08,218.7,218.64,8.80335684]
[1736189416428,2.08,218.7,218.65,8.80335684]
[1736189417006,2.08,218.7,218.64,8.80335684]
[1736189417208,10.88335684,218.7,218.63,8.80335684]
[1736189418823,10.88335684,218.7,218.64,8.80335684]
[1736189418824,2.08,218.7,218.64,8.80335684]
[1736189419199,2.08,218.69,218.65,8.80335684]
[1736189420300,2.08,218.69,218.66,8.80335684]
[1736189420802,2.08,218.69,218.65,8.80335684]
[1736189421204,2.08,218.69,218.64,8.80335684]
[1736189421922,2.08,218.69,218.61,11.4355]
[1736189422125,2.08,218.69,218.64,8.80335684]
[1736189423431,2.08,218.69,218.63,8.80335684]
[1736189423619,10.88335684,218.69,218.61,11.4355]
[1736189423927,10.88335684,218.69,218.62,8.80335684]
[1736189424504,10.88335684,218.69,218.63,8.80335684]
[1736189424704,2.08,218.69,218.63,8.80335684]
[1736189424905,2.08,218.69,218.64,8.80335684]
[1736189425115,2.08,218.69,218.65,8.80335684]
[1736189425317,2.08,218.69,218.63,8.80335684]
[1736189425703,2.08,218.69,218.64,8.80335684]
[1736189427931,2.08,218.69,218.65,8.80335684]
[1736189428340,2.08,218.69,218.64,8.80335684]
[1736189429342,2.08,218.69,218.63,8.80335684]
[1736189431740,2.08,218.69,218.64,8.80335684]
[1736189431943,1.5583,218.72,218.59,23.776884]
[1736189432127,15.09425684,218.76,218.69,8.80335684]
[1736189432304,6.2909,218.76,218.71,8.80335684]
[1736189432505,1.6248,218.77,218.72,8.80335684]
[1736189432717,1.6248,218.77,218.71,8.80335684]
[1736189432718,2.08,218.76,218.71,8.80335684]
[1736189432920,2.08,218.76,218.7,8.80335684]
[1736189433640,10.88335684,218.76,218.69,8.80335684]
[1736189434021,8.80335684,218.73,218.66,11.4329]
[1736189434223,8.80335684,218.73,218.66,40.23625684]
[1736189434835,8.80335684,218.72,218.66,31.4329]
[1736189435141,8.80335684,218.72,218.66,11.4329]
[1736189435441,8.80335684,218.74,218.67,8.80335684]
[1736189435933,8.80335684,218.73,218.66,20.23625684]
[1736189437617,8.80335684,218.74,218.67,8.80335684]
[1736189437938,8.80335684,218.74,218.63,23.776884]
[1736189437939,2.08,218.73,218.7,8.80335684]
[1736189438442,2.08,218.73,218.71,8.80335684]
[1736189439554,2.08,218.73,218.72,8.80335684]
[1736189439906,20.0,218.78,218.72,8.80335684]
[1736189439907,2.08,218.74,218.72,8.80335684]
[1736189440113,2.08,218.74,218.73,8.80335684]
[1736189440545,2.08,218.74,218.72,8.80335684]
[1736189440916,2.08,218.74,218.68,11.4317]
[1736189441225,2.08,218.74,218.71,8.80335684]
[1736189441633,2.08,218.74,218.7,8.80335684]
[1736189441835,2.08,218.74,218.69,8.80335684]
[1736189442050,10.88335684,218.74,218.68,11.4317]
[1736189442247,8.80335684,218.73,218.66,8.80335684]
[1736189442559,10.88335684,218.74,218.65,11.4337]
[1736189442728,8.80335684,218.73,218.66,8.80335684]
[1736189443317,8.80335684,218.72,218.65,11.4337]
[1736189443519,8.80335684,218.72,218.65,20.23705684]
[1736189443851,8.80335684,218.72,218.66,8.80335684]
[1736189444051,8.80335684,218.72,218.65,11.4337]
[1736189444347,8.80335684,218.73,218.67,8.80335684]
[1736189444520,10.88335684,218.74,218.67,8.80335684]
[1736189446454,10.88335684,218.74,218.68,8.80335684]
[1736189447466,10.88335684,218.74,218.67,20.23555684]
[1736189447764,8.80335684,218.73,218.67,11.4322]
[1736189448240,8.80335684,218.72,218.67,11.4322]
[1736189448437,8.80335684,218.72,218.65,8.80335684]
[1736189448758,8.80335684,218.71,218.64,8.80335684]
[1736189449062,8.80335684,218.72,218.65,8.80335684]
[1736189449361,8.80335684,218.72,218.66,8.80335684]
[1736189449573,8.80335684,218.72,218.65,8.80335684]
[1736189450857,8.80335684,218.71,218.64,8.80335684]
[1736189451658,8.80335684,218.71,218.65,8.80335684]
[1736189452457,3.6195,218.74,218.67,8.80335684]
[1736189452458,2.08,218.7,218.67,8.80335684]
[1736189452663,2.08,218.7,218.66,8.80335684]
[1736189453065,2.08,218.7,218.68,8.80335684]
[1736189453249,2.08,218.7,218.67,8.80335684]
[1736189453566,2.08,218.7,218.68,8.80335684]
[1736189453856,2.08,218.7,218.67,8.80335684]
[1736189454065,2.08,218.7,218.65,20.23665684]
[1736189454271,2.08,218.7,218.66,8.80335684]
[1736189454557,2.08,218.7,218.67,8.80335684]
[1736189455562,2.08,218.7,218.66,8.80335684]
[1736189456448,2.08,218.7,218.67,8.80335684]
[1736189456649,2.08,218.7,218.69,8.80335684]
[1736189456847,1.6476,218.79,218.69,8.80335684]
[1736189457052,1.6476,218.79,218.74,8.80335684]
[1736189457237,2.08,218.78,218.74,8.80335684]
[1736189457764,1.6476,218.79,218.74,8.80335684]
[1736189458065,2.08,218.77,218.74,8.80335684]
[1736189458255,2.08,218.77,218.73,8.80335684]
[1736189458647,2.08,218.77,218.72,8.80335684]
[1736189459066,2.08,218.77,218.72,13.80036697]
[1736189460041,2.08,218.77,218.71,13.80036697]
[1736189460242,2.08,218.77,218.72,13.80036697]
[1736189460669,2.08,218.77,218.71,13.80036697]
[1736189461237,13.80036697,218.75,218.69,13.80036697]
[1736189461446,13.80036697,218.76,218.69,13.80036697]
[1736189461846,13.80036697,218.75,218.69,13.80036697]
[1736189462876,13.80036697,218.76,218.69,13.80036697]
[1736189463178,15.88036697,218.77,218.7,13.80036697]
[1736189463359,13.80036697,218.76,218.69,13.80036697]
[1736189465851,15.88036697,218.77,218.69,13.80036697]
[1736189466052,15.88036697,218.77,218.7,13.80036697]
[1736189466757,1.6476,218.79,218.73,13.80036697]
[1736189466965,2.08,218.78,218.73,13.80036697]
[1736189467160,2.08,218.77,218.75,13.80036697]
[1736189467375,7.14853025,218.82,218.76,13.80036697]
[1736189467559,7.14853025,218.82,218.73,20.0]
[1736189467753,2.08,218.81,218.73,20.0]
[1736189468074,2.08,218.81,218.77,13.80036697]
[1736189468771,2.08,218.81,218.75,13.80036697]
[1736189468974,2.08,218.81,218.76,13.80036697]
[1736189471186,2.08,218.81,218.77,13.80036697]
[1736189472480,2.08,218.81,218.76,13.80036697]
[1736189472786,2.08,218.81,218.75,13.80036697]
[1736189474483,2.08,218.81,218.76,13.80036697]
[1736189475392,2.08,218.81,218.77,13.80036697]
[1736189475555,13.43583025,218.87,218.79,13.80036697]
[1736189475556,2.08,218.8,218.79,13.80036697]
[1736189476661,13.80036697,218.86,218.79,13.80036697]
[1736189476976,2.08,218.85,218.79,13.80036697]
[1736189477484,2.08,218.85,218.8,13.80036697]
[1736189477873,2.08,218.85,218.79,13.80036697]
[1736189479181,2.08,218.85,218.81,13.80036697]
[1736189479382,2.08,218.85,218.82,13.80036697]
[1736189479792,44.00036697,218.9,218.83,13.80036697]
[1736189480105,30.2,218.9,218.84,13.80036697]
[1736189480289,2.08,218.89,218.84,13.80036697]
[1736189480669,15.88036697,218.89,218.83,13.80036697]
[1736189482075,2.08,218.89,218.85,13.80036697]
[1736189482385,2.08,218.88,218.86,13.80036697]
[1736189483174,2.08,218.88,218.86,8.82007759]
[1736189484307,8.82007759,218.93,218.86,8.82007759]
[1736189484689,2.08,218.92,218.87,8.82007759]
[1736189485284,8.82007759,218.94,218.87,8.82007759]
[1736189485489,2.08,218.91,218.87,8.82007759]
[1736189485690,2.08,218.91,218.86,8.82007759]
[1736189488198,2.08,218.91,218.85,8.82007759]
[1736189490117,2.08,218.91,218.86,8.82007759]
[1736189490708,2.08,218.91,218.88,8.82007759]
[1736189491029,2.08,218.91,218.87,8.82007759]
[1736189491309,2.08,218.91,218.88,8.82007759]
[1736189493218,6.5861,218.97,218.9,8.82007759]
[1736189493219,15.40617759,218.97,218.9,8.82007759]
[1736189493528,2.08,218.96,218.9,8.82007759]
[1736189494316,6.5861,218.97,218.91,8.82007759]
[1736189494477,2.08,218.96,218.91,8.82007759]
[1736189495299,10.90007759,219.02,218.95,8.82007759]
[1736189495499,28.82007759,219.01,218.95,8.82007759]
[1736189495688,28.82007759,219.01,218.9,6.0322]
[1736189495689,2.08,219.01,218.96,8.82007759]
[1736189496818,10.90007759,219.01,218.95,8.82007759]
[1736189497104,8.82007759,218.99,218.92,8.82007759]
[1736189498313,8.82007759,219.0,218.93,8.82007759]
[1736189498490,8.82007759,218.99,218.93,8.82007759]
[1736189499311,2.08,219.01,218.91,8.82007759]
[1736189499312,8.82007759,218.98,218.91,8.82007759]
[1736189499512,2.08,219.01,218.87,8.82007759]
[1736189499513,8.82007759,218.93,218.87,8.82007759]
[1736189499820,8.82007759,218.92,218.85,10.36607759]
[1736189499998,8.82007759,218.93,218.86,28.82007759]
[1736189500199,10.90007759,218.93,218.86,28.82007759]
[1736189501188,15.86174811,218.93,218.86,33.78174811]
[1736189501908,13.78174811,218.92,218.86,33.78174811]
[1736189502109,13.78174811,218.9,218.85,1.546]
[1736189502308,13.78174811,218.92,218.85,15.32774811]
[1736189502510,13.78174811,218.92,218.85,13.78174811]
[1736189503611,15.86174811,218.93,218.86,13.78174811]
[1736189504420,2.08,218.93,218.87,13.78174811]
[1736189505716,15.86174811,218.93,218.87,13.78174811]
[1736189508026,2.08,218.93,218.87,13.78174811]
[1736189508733,15.86174811,218.93,218.86,13.78174811]
[1736189510627,13.78174811,218.92,218.85,25.20464811]
[1736189511227,2.08,218.93,218.89,13.78174811]
[1736189511407,2.08,218.93,218.87,13.78174811]
[1736189513138,2.08,218.93,218.88,13.78174811]
[1736189514219,2.08,218.93,218.87,13.78174811]
[1736189514525,2.08,218.93,218.85,11.4229]
[1736189514739,2.08,218.93,218.89,13.78174811]
[1736189514909,2.08,218.93,218.9,13.78174811]
[1736189515105,13.78174811,219.01,218.92,13.78174811]
[1736189515345,1.615,219.04,218.95,13.78174811]
[1736189515346,2.08,219.0,218.95,13.78174811]
[1736189515506,2.08,219.0,218.94,13.78174811]
[1736189515709,2.08,219.0,218.91,20.0]
[1736189515935,15.86174811,219.0,218.93,13.78174811]
[1736189516112,2.08,219.0,218.94,13.78174811]
[1736189516931,2.08,218.99,218.94,13.78174811]
[1736189517235,13.78174811,219.01,218.94,13.78174811]
[1736189517412,2.08,218.99,218.94,13.78174811]
[1736189518526,2.08,218.99,218.93,13.78174811]
[1736189519447,15.86174811,218.99,218.93,13.78174811]
[1736189519610,13.78174811,218.97,218.91,25.20194811]
[1736189520155,13.78174811,218.97,218.91,11.4202]
[1736189520515,13.78174811,218.97,218.9,33.78174811]
[1736189520832,13.78174811,218.93,218.88,11.4216]
[1736189521160,13.78174811,218.94,218.88,11.4216]
[1736189521331,2.08,218.99,218.89,13.78174811]
[1736189521332,13.78174811,218.95,218.89,13.78174811]
[1736189521539,13.78174811,218.96,218.9,13.78174811]
[1736189521741,13.78174811,218.96,218.89,13.78174811]
[1736189522142,13.78174811,218.95,218.88,25.20334811]
[1736189522855,13.78174811,218.94,218.88,25.20334811]
[1736189523040,13.78174811,218.94,218.88,20.24083478]
[1736189523041,8.81923478,218.94,218.88,20.24083478]
[1736189523249,8.81923478,218.95,218.88,20.24083478]
[1736189523951,8.81923478,218.96,218.89,8.81923478]
[1736189524127,8.81923478,218.95,218.88,11.4216]
[1736189524333,8.81923478,218.96,218.89,8.81923478]
[1736189525170,10.89923478,218.99,218.93,8.81923478]
[1736189525342,2.08,218.99,218.94,8.81923478]
[1736189526037,2.08,218.99,218.93,8.81923478]
[1736189528565,2.08,218.99,218.94,8.81923478]
[1736189528760,1.615,219.04,218.95,8.81923478]
[1736189528761,20.0,219.02,218.95,8.81923478]
[1736189529066,2.08,219.01,218.95,8.81923478]
[1736189529360,2.08,219.01,218.96,8.81923478]
[1736189529559,2.08,219.0,218.95,8.81923478]
[1736189530840,2.08,219.0,218.96,8.81923478]
[1736189531336,2.08,219.0,218.95,8.81923478]
[1736189531862,2.08,219.0,218.97,8.81923478]
[1736189532056,2.08,219.0,218.92,11.4192]
[1736189532057,2.08,219.0,218.96,8.81923478]
[1736189532366,2.08,219.0,218.95,8.81923478]